fUSD/lending_fUSD_20241105
["ID","MTS","AMOUNT","RATE_DAILY","PERIOD"]
[341344647,1730818305384,-500.0,0.00030136,2]
[341344648,1730818305393,-543.17,0.00030136,2]
[341344649,1730818305403,-621.32,0.00030136,2]
[341344650,1730818305412,-3230.76,0.00030136,2]
[341344651,1730818305422,-851.69,0.00030136,2]
[341344652,1730818305432,-862.17,0.00030136,2]
[341344653,1730818305443,-500.0,0.00030136,2]
[341344654,1730818305454,-517.2,0.00030136,2]
[341344655,1730818305464,-2720.75,0.00030136,2]
[341344656,1730818305474,-638.18,0.00030136,2]
[341344657,1730818305484,-947.11,0.00030136,2]
[341344658,1730818305493,-3625.83,0.00030136,2]
[341344659,1730818305502,-2072.98,0.00030136,2]
[341344660,1730818305511,-500.0,0.00030136,2]
[341344661,1730818305522,-2681.47,0.00030136,2]
[341344662,1730818305531,-315.47148449,0.00030136,2]
[341344663,1730818305541,-500.0,0.00030136,2]
[341344664,1730818305550,-1864.35,0.00030136,2]
[341344665,1730818305561,-738.0,0.00030136,2]
[341344666,1730818305571,-500.0,0.00030136,2]
[341344667,1730818305581,-1021.21,0.00030136,2]
[341344668,1730818305591,-879.91,0.00030136,2]
[341344669,1730818305602,-309.40316687,0.00030136,2]
[341344670,1730818305612,-500.0,0.00030136,2]
[341344671,1730818305621,-1500.0,0.00030137,2]
[341344672,1730818305630,-152.0,0.00030274,4]
[341344673,1730818305641,-959.37,0.0003041,2]
[341344674,1730818305651,-642.42,0.0003041,2]
[341344675,1730818305661,-500.0,0.0003041,2]
[341344676,1730818305670,-500.0,0.0003041,2]
[341344677,1730818305679,-2202.5,0.0003041,2]
[341344678,1730818305688,-183.28194649,0.0003041,2]
[341344679,1730818305698,-1276.84,0.0003041,2]
[341344680,1730818305707,-500.0,0.0003041,2]
[341344681,1730818305716,-500.0,0.0003041,2]
[341344682,1730818305725,-500.0,0.0003041,2]
[341344683,1730818305734,-500.0,0.0003041,2]
[341344684,1730818305743,-524.62,0.0003041,2]
[341344685,1730818305753,-500.0,0.0003041,2]
[341344686,1730818305763,-500.0,0.0003041,2]
[341344687,1730818305772,-500.0,0.0003041,2]
[341344688,1730818305781,-500.0,0.0003041,2]
[341344689,1730818305791,-1325.09,0.0003041,2]
[341344690,1730818305800,-652.16,0.0003041,2]
[341344691,1730818305809,-500.0,0.0003041,2]
[341344692,1730818305818,-500.0,0.0003041,2]
[341344693,1730818305828,-1213.8,0.0003041,2]
[341344694,1730818305837,-543.65,0.0003041,2]
[341344695,1730818305849,-500.0,0.0003041,2]
[341344696,1730818305858,-710.18,0.0003041,2]
[341344697,1730818305867,-596.5,0.0003041,2]
[341344698,1730818305877,-500.0,0.0003041,2]
[341344699,1730818305886,-500.0,0.0003041,2]
[341344700,1730818305895,-500.0,0.0003041,2]
[341344701,1730818305904,-1031.26,0.0003041,2]
[341344702,1730818305914,-1810.02,0.0003041,2]
[341344703,1730818305924,-500.0,0.0003041,2]
[341344704,1730818305933,-500.0,0.0003041,2]
[341344705,1730818305944,-1006.45,0.0003041,2]
[341344706,1730818305955,-1532.81,0.0003041,2]
[341344707,1730818305966,-500.0,0.0003041,2]
[341344708,1730818305976,-1172.46,0.0003041,2]
[341344709,1730818305986,-950.66,0.0003041,2]
[341344710,1730818305995,-566.27,0.0003041,2]
[341344711,1730818306005,-1150.28,0.0003041,2]
[341344712,1730818306015,-1053.05,0.0003041,2]
[341344713,1730818306024,-1385.21,0.0003041,2]
[341344714,1730818306033,-2449.39,0.0003041,2]
[341344715,1730818306043,-551.76,0.0003041,2]
[341344716,1730818306054,-1152.78,0.0003041,2]
[341344717,1730818306065,-505.75,0.0003041,2]
[341344718,1730818306075,-1169.16,0.0003041,2]
[341344719,1730818306084,-500.0,0.0003041,2]
[341344720,1730818306094,-500.0,0.0003041,2]
[341344721,1730818306106,-1981.15,0.0003041,2]
[341344722,1730818306115,-1122.88,0.0003041,2]
[341344723,1730818306124,-667.7,0.0003041,2]
[341344724,1730818306134,-765.3,0.0003041,2]
[341344725,1730818306144,-1179.4,0.0003041,2]
[341344726,1730818306155,-745.83,0.0003041,2]
[341344727,1730818306167,-1138.75,0.0003041,2]
[341344728,1730818306176,-500.0,0.0003041,2]
[341344729,1730818306186,-500.0,0.0003041,2]
[341344730,1730818306195,-1546.36,0.0003041,2]
[341344731,1730818306205,-1799.17,0.0003041,2]
[341344732,1730818306214,-500.0,0.0003041,2]
[341344733,1730818306223,-918.0,0.0003041,2]
[341344734,1730818306233,-882.74,0.0003041,2]
[341344735,1730818306242,-500.0,0.0003041,2]
[341344736,1730818306253,-500.0,0.0003041,2]
[341344737,1730818306264,-715.96,0.0003041,2]
[341344738,1730818306273,-1464.77,0.0003041,2]
[341344739,1730818306283,-500.0,0.0003041,2]
[341344740,1730818306292,-500.0,0.0003041,2]
[341344741,1730818306302,-500.0,0.0003041,2]
[341344742,1730818306312,-500.0,0.0003041,2]
[341344743,1730818306322,-821.25,0.0003041,2]
[341344744,1730818306332,-561.05,0.0003041,2]
[341344745,1730818306343,-2488.35,0.0003041,2]
[341344746,1730818306354,-1277.43,0.0003041,2]
[341344747,1730818306364,-789.16,0.0003041,2]
[341344748,1730818306374,-1983.46,0.0003041,2]
[341344749,1730818306383,-1319.52,0.0003041,2]
[341344750,1730818306393,-770.21,0.0003041,2]
[341344751,1730818306402,-933.5,0.0003041,2]
[341344752,1730818306412,-1484.81,0.0003041,2]
[341344753,1730818306422,-893.08,0.0003041,2]
[341344754,1730818306431,-769.6,0.0003041,2]
[341344755,1730818306441,-2097.16,0.0003041,2]
[341344756,1730818306450,-706.56,0.0003041,2]
[341344757,1730818306459,-626.22,0.0003041,2]
[341344758,1730818306469,-1129.24,0.0003041,2]
[341344759,1730818306478,-1181.37,0.0003041,2]
[341344760,1730818306487,-500.0,0.0003041,2]
[341344761,1730818306497,-1105.93,0.0003041,2]
[341344762,1730818306506,-1949.19,0.0003041,2]
[341344763,1730818306516,-1772.13,0.0003041,2]
[341344764,1730818306525,-500.0,0.0003041,2]
[341344765,1730818306534,-2148.83,0.0003041,2]
[341344766,1730818306544,-500.0,0.0003041,2]
[341344767,1730818306554,-899.14,0.0003041,2]
[341344768,1730818306564,-500.0,0.0003041,2]
[341344769,1730818306575,-2651.17,0.0003041,2]
[341344770,1730818306585,-410.77323729,0.0003041,2]
[341344771,1730818306594,-729.55,0.0003041,2]
[341344772,1730818306605,-891.77,0.0003041,2]
[341344773,1730818306615,-1337.92,0.0003041,2]
[341344774,1730818306625,-500.0,0.0003041,2]
[341344775,1730818306635,-500.0,0.0003041,2]
[341344776,1730818306646,-500.0,0.0003041,2]
[341344777,1730818306656,-500.0,0.0003041,2]
[341344778,1730818306666,-500.0,0.0003041,2]
[341344779,1730818306675,-500.0,0.0003041,2]
[341344780,1730818306686,-2000.0,0.0003041,2]
[341344781,1730818306695,-1628.51,0.0003041,2]
[341344782,1730818306705,-1340.76,0.0003041,2]
[341344783,1730818306714,-517.08846918,0.0003041,2]
[341344784,1730818306723,-1205.1,0.0003041,2]
[341344785,1730818306732,-671.93,0.0003041,2]
[341344786,1730818306743,-2625.61,0.0003041,2]
[341344787,1730818306754,-500.0,0.0003041,2]
[341344788,1730818306764,-1052.87,0.0003041,2]
[341344789,1730818306774,-862.96,0.0003041,2]
[341344790,1730818306783,-500.0,0.0003041,2]
[341344791,1730818306793,-1134.95,0.0003041,2]
[341344792,1730818306802,-500.0,0.0003041,2]
[341344793,1730818306812,-713.84,0.0003041,2]
[341344794,1730818306821,-1190.36,0.0003041,2]
[341344795,1730818306830,-500.0,0.0003041,2]
[341344796,1730818306839,-500.0,0.0003041,2]
[341344797,1730818306850,-561.87,0.0003041,2]
[341344798,1730818306860,-500.0,0.0003041,2]
[341344799,1730818306870,-466.6784604,0.0003041,2]
[341344800,1730818306879,-1258.85,0.0003041,2]
[341344801,1730818306889,-708.32,0.0003041,2]
[341344802,1730818306898,-719.74,0.0003041,2]
[341344803,1730818306907,-530.24,0.0003041,2]
[341344804,1730818306916,-533.96,0.0003041,2]
[341344805,1730818306925,-1233.24,0.0003041,2]
[341344806,1730818306934,-1568.32,0.0003041,2]
[341344807,1730818306944,-1593.99,0.0003041,2]
[341344808,1730818306954,-500.0,0.0003041,2]
[341344809,1730818306962,-500.0,0.0003041,2]
[341344810,1730818306972,-1606.8,0.0003041,2]
[341344811,1730818306981,-1114.96,0.0003041,2]
[341344812,1730818306990,-1019.34,0.0003041,2]
[341344813,1730818306999,-1345.66,0.0003041,2]
[341344814,1730818307009,-573.0,0.0003041,2]
[341344815,1730818307019,-500.0,0.0003041,2]
[341344816,1730818307028,-1308.07,0.0003041,2]
[341344817,1730818307038,-500.0,0.0003041,2]
[341344818,1730818307047,-500.0,0.0003041,2]
[341344819,1730818307057,-997.78,0.0003041,2]
[341344820,1730818307066,-510.23,0.0003041,2]
[341344821,1730818307075,-619.16,0.0003041,2]
[341344822,1730818307085,-500.0,0.0003041,2]
[341344823,1730818307094,-654.14,0.0003041,2]
[341344824,1730818307106,-500.0,0.0003041,2]
[341344825,1730818307115,-500.0,0.0003041,2]
[341344826,1730818307124,-500.0,0.0003041,2]
[341344827,1730818307134,-500.0,0.0003041,2]
[341344828,1730818307143,-500.0,0.0003041,2]
[341344829,1730818307153,-500.0,0.0003041,2]
[341344830,1730818307162,-859.18,0.0003041,2]
[341344831,1730818307171,-685.48,0.0003041,2]
[341344832,1730818307181,-500.0,0.0003041,2]
[341344833,1730818307190,-500.0,0.0003041,2]
[341344834,1730818307199,-804.47,0.0003041,2]
[341344835,1730818307208,-500.0,0.0003041,2]
[341344836,1730818307218,-500.0,0.0003041,2]
[341344837,1730818307227,-1490.72,0.0003041,2]
[341344838,1730818307236,-500.0,0.0003041,2]
[341344839,1730818307247,-2778.32,0.0003041,2]
[341344840,1730818307258,-1058.06,0.0003041,2]
[341344841,1730818307267,-991.64,0.0003041,2]
[341344842,1730818307277,-500.0,0.0003041,2]
[341344843,1730818307286,-512.56,0.0003041,2]
[341344844,1730818307297,-1286.83,0.0003041,2]
[341344845,1730818307307,-10560.64,0.0003041,2]
[341344846,1730818307317,-500.0,0.0003041,2]
[341344847,1730818307327,-500.0,0.0003041,2]
[341344848,1730818307337,-574.51,0.0003041,2]
[341344849,1730818307349,-882.25,0.0003041,2]
[341344850,1730818307358,-500.0,0.0003041,2]
[341344851,1730818307367,-2024.06,0.0003041,2]
[341344852,1730818307376,-2459.63,0.0003041,2]
[341344853,1730818307385,-500.0,0.0003041,2]
[341344854,1730818307395,-522.65,0.0003041,2]
[341344855,1730818307404,-832.24,0.0003041,2]
[341344856,1730818307413,-539.9,0.0003041,2]
[341344857,1730818307423,-577.06,0.0003041,2]
[341344858,1730818307433,-500.0,0.0003041,2]
[341344859,1730818307442,-528.68,0.0003041,2]
[341344860,1730818307524,-1759.85,0.0003041,2]
[341344861,1730818307533,-500.0,0.0003041,2]
[341344862,1730818307542,-1143.05,0.0003041,2]
[341344863,1730818307551,-2134.71,0.0003041,2]
[341344864,1730818307561,-448.6633776,0.0003041,2]
[341344865,1730818307571,-500.0,0.0003041,2]
[341344866,1730818307580,-1180.55,0.0003041,2]
[341344867,1730818307589,-669.82,0.0003041,2]
[341344868,1730818307600,-500.0,0.0003041,2]
[341344869,1730818307610,-500.0,0.0003041,2]
[341344870,1730818307619,-500.0,0.0003041,2]
[341344871,1730818307629,-2610.73,0.0003041,2]
[341344872,1730818307638,-222.80443204,0.0003041,2]
[341344873,1730818307647,-500.0,0.0003041,2]
[341344874,1730818307657,-812.75,0.0003041,2]
[341344875,1730818307669,-2008.76,0.0003041,2]
[341344876,1730818307678,-500.0,0.0003041,2]
[341344877,1730818307687,-500.0,0.0003041,2]
[341344878,1730818307696,-839.69,0.0003041,2]
[341344879,1730818307705,-2029.5,0.0003041,2]
[341344880,1730818307714,-500.0,0.0003041,2]
[341344881,1730818307723,-500.0,0.0003041,2]
[341344882,1730818307733,-828.58,0.0003041,2]
[341344883,1730818307742,-500.0,0.0003041,2]
[341344884,1730818307751,-500.0,0.0003041,2]
[341344885,1730818307760,-500.0,0.0003041,2]
[341344886,1730818307770,-1273.27,0.0003041,2]
[341344887,1730818307779,-500.0,0.0003041,2]
[341344888,1730818307788,-590.4,0.0003041,2]
[341344889,1730818307797,-1210.7,0.0003041,2]
[341344890,1730818307806,-2727.4,0.0003041,2]
[341344891,1730818307815,-1114.81,0.0003041,2]
[341344892,1730818307824,-12148.46,0.0003041,2]
[341344893,1730818307834,-2229.83,0.0003041,2]
[341344894,1730818307843,-511.42,0.0003041,2]
[341344895,1730818307856,-500.0,0.0003041,2]
[341344896,1730818307865,-500.0,0.0003041,2]
[341344897,1730818307875,-2291.13,0.0003041,2]
[341344898,1730818307884,-997.05,0.0003041,2]
[341344899,1730818307893,-800.14,0.0003041,2]
[341344900,1730818307903,-1162.23,0.0003041,2]
[341344901,1730818307912,-644.22424668,0.0003041,2]
[341344902,1730818307920,-3281.13,0.0003041,2]
[341344903,1730818307929,-618.36,0.0003041,2]
[341344904,1730818307939,-500.0,0.0003041,2]
[341344905,1730818307948,-20453.09,0.0003041,2]
[341344906,1730818307957,-500.0,0.0003041,2]
[341344907,1730818307966,-839.45,0.0003041,2]
[341344908,1730818307975,-694.1,0.0003041,2]
[341344909,1730818307984,-500.0,0.0003041,2]
[341344910,1730818307993,-1597.24,0.0003041,2]
[341344911,1730818308002,-4040.37,0.0003041,2]
[341344912,1730818308011,-500.0,0.0003041,2]
[341344913,1730818308020,-500.0,0.0003041,2]
[341344914,1730818308030,-8586.16,0.0003041,2]
[341344915,1730818308039,-500.0,0.0003041,2]
[341344916,1730818308048,-500.0,0.0003041,2]
[341344917,1730818308058,-2313.73,0.0003041,2]
[341344918,1730818308068,-1073.79,0.0003041,2]
[341344919,1730818308078,-500.0,0.0003041,2]
[341344920,1730818308087,-558.66,0.0003041,2]
[341344921,1730818308097,-5774.21,0.0003041,2]
[341344922,1730818308110,-500.0,0.0003041,2]
[341344923,1730818308122,-1029.49,0.0003041,2]
[341344924,1730818308131,-673.5,0.0003041,2]
[341344925,1730818308141,-813.15,0.0003041,2]
[341344926,1730818308150,-1674.98,0.0003041,2]
[341344927,1730818308160,-4168.65,0.0003041,2]
[341344928,1730818308169,-624.40281648,0.0003041,2]
[341344929,1730818308179,-2221.75,0.0003041,2]
[341344930,1730818308188,-500.0,0.0003041,2]
[341344931,1730818308198,-722.22,0.0003041,2]
[341344932,1730818308208,-500.0,0.0003041,2]
[341344933,1730818308218,-623.01,0.0003041,2]
[341344934,1730818308228,-430.11664399,0.0003041,2]
[341344935,1730818308237,-728.55,0.0003041,2]
[341344936,1730818308250,-200.0,0.0003041,2]
[341344937,1730818308261,-800.76,0.0003041,2]
[341344938,1730818308271,-500.0,0.0003041,2]
[341344939,1730818308281,-500.0,0.0003041,2]
[341344940,1730818308291,-1037.42,0.0003041,2]
[341344941,1730818308300,-500.0,0.0003041,2]
[341344942,1730818308310,-500.0,0.0003041,2]
[341344943,1730818308320,-4458.86,0.0003041,2]
[341344944,1730818308329,-6100.5,0.0003041,2]
[341344945,1730818308339,-1684.86,0.0003041,2]
[341344946,1730818308350,-500.0,0.0003041,2]
[341344947,1730818308361,-746.32,0.0003041,2]
[341344948,1730818308374,-860.55,0.0003041,2]
[341344949,1730818308384,-2800.82,0.0003041,2]
[341344950,1730818308393,-1239.54,0.0003041,2]
[341344951,1730818308403,-500.0,0.0003041,2]
[341344952,1730818308413,-3438.17,0.0003041,2]
[341344953,1730818308423,-2595.38,0.0003041,2]
[341344954,1730818308432,-580.29,0.0003041,2]
[341344955,1730818308442,-2840.74,0.0003041,2]
[341344956,1730818308451,-3998.92,0.0003041,2]
[341344957,1730818308461,-500.0,0.0003041,2]
[341344958,1730818308471,-847.64,0.0003041,2]
[341344959,1730818308480,-14923.18,0.0003041,2]
[341344960,1730818308489,-1420.05,0.0003041,2]
[341344961,1730818308499,-500.0,0.0003041,2]
[341344962,1730818308509,-500.0,0.0003041,2]
[341344963,1730818308518,-7967.31,0.0003041,2]
[341344964,1730818308528,-500.0,0.0003041,2]
[341344965,1730818308538,-2786.33,0.0003041,2]
[341344966,1730818308548,-500.0,0.0003041,2]
[341344967,1730818308557,-375.33973479,0.0003041,2]
[341344968,1730818308567,-500.0,0.0003041,2]
[341344969,1730818308577,-2634.78,0.0003041,2]
[341344970,1730818308586,-500.0,0.0003041,2]
[341344971,1730818308596,-4963.13,0.0003041,2]
[341344972,1730818308608,-1373.68,0.0003041,2]
[341344973,1730818308617,-3175.23,0.0003041,2]
[341344974,1730818308626,-1485.58,0.0003041,2]
[341344975,1730818308635,-8714.97,0.0003041,2]
[341344976,1730818308648,-1668.5,0.0003041,2]
[341344977,1730818308659,-500.0,0.0003041,2]
[341344978,1730818308669,-580.17,0.0003041,2]
[341344979,1730818308679,-2394.75,0.0003041,2]
[341344980,1730818308688,-500.0,0.0003041,2]
[341344981,1730818308698,-870.25,0.0003041,2]
[341344982,1730818308707,-3537.3,0.0003041,2]
[341344983,1730818308715,-500.0,0.0003041,2]
[341344984,1730818308724,-812.1,0.0003041,2]
[341344985,1730818308733,-500.0,0.0003041,2]
[341344986,1730818308743,-641.36,0.0003041,2]
[341344987,1730818308752,-519.6,0.0003041,2]
[341344988,1730818308762,-500.0,0.0003041,2]
[341344989,1730818308771,-5273.27,0.0003041,2]
[341344990,1730818308781,-1061.46,0.0003041,2]
[341344991,1730818308790,-2904.78,0.0003041,2]
[341344992,1730818308800,-500.0,0.0003041,2]
[341344993,1730818308809,-22457.59,0.0003041,2]
[341344994,1730818308819,-500.0,0.0003041,2]
[341344995,1730818308828,-500.0,0.0003041,2]
[341344996,1730818308838,-543.17,0.0003041,2]
[341344997,1730818308850,-621.32,0.0003041,2]
[341344998,1730818308860,-3230.76,0.0003041,2]
[341344999,1730818308870,-862.17,0.0003041,2]
[341345000,1730818308879,-851.69,0.0003041,2]
[341345001,1730818308889,-500.0,0.0003041,2]
[341345002,1730818308898,-2720.75,0.0003041,2]
[341345003,1730818308907,-517.2,0.0003041,2]
[341345004,1730818308916,-638.18,0.0003041,2]
[341345005,1730818308926,-947.11,0.0003041,2]
[341345006,1730818308935,-3625.83,0.0003041,2]
[341345007,1730818308945,-2072.98,0.0003041,2]
[341345008,1730818308956,-646.5,0.0003041,2]
[341345009,1730818308965,-2681.47,0.0003041,2]
[341345010,1730818308975,-500.0,0.0003041,2]
[341345011,1730818308984,-1864.35,0.0003041,2]
[341345012,1730818308993,-738.0,0.0003041,2]
[341345013,1730818309002,-500.0,0.0003041,2]
[341345014,1730818309012,-1021.21,0.0003041,2]
[341345015,1730818309021,-879.91,0.0003041,2]
[341345016,1730818309030,-500.0,0.0003041,2]
[341345017,1730818309040,-654.4895,0.00030469,2]
[341345018,1730818309049,-158.62,0.00030548,2]
[341345019,1730818309059,-959.37,0.00030684,2]
[341345020,1730818309068,-642.42,0.00030684,2]
[341345021,1730818309077,-500.0,0.00030684,2]
[341345022,1730818309087,-500.0,0.00030684,2]
[341345023,1730818309096,-2202.5,0.00030684,2]
[341345024,1730818309107,-1276.84,0.00030684,2]
[341345025,1730818309117,-500.0,0.00030684,2]
[341345026,1730818309127,-500.0,0.00030684,2]
[341345027,1730818309137,-500.0,0.00030684,2]
[341345028,1730818309146,-500.0,0.00030684,2]
[341345029,1730818309156,-524.62,0.00030684,2]
[341345030,1730818309167,-500.0,0.00030684,2]
[341345031,1730818309177,-500.0,0.00030684,2]
[341345032,1730818309187,-500.0,0.00030684,2]
[341345033,1730818309197,-500.0,0.00030684,2]
[341345034,1730818309207,-1325.09,0.00030684,2]
[341345035,1730818309217,-652.16,0.00030684,2]
[341345036,1730818309227,-500.0,0.00030684,2]
[341345037,1730818309237,-585.41853443,0.00030684,2]
[341345038,1730818309250,-1213.8,0.00030684,2]
[341345039,1730818309260,-543.65,0.00030684,2]
[341345040,1730818309270,-500.0,0.00030684,2]
[341345041,1730818309280,-710.18,0.00030684,2]
[341345042,1730818309290,-596.5,0.00030684,2]
[341345043,1730818309301,-500.0,0.00030684,2]
[341345044,1730818309311,-500.0,0.00030684,2]
[341345045,1730818309320,-500.0,0.00030684,2]
[341345046,1730818309332,-1031.26,0.00030684,2]
[341345047,1730818309342,-1810.02,0.00030684,2]
[341345048,1730818309354,-500.0,0.00030684,2]
[341345049,1730818309363,-500.0,0.00030684,2]
[341345050,1730818309373,-1006.45,0.00030684,2]
[341345051,1730818309384,-1532.81,0.00030684,2]
[341345052,1730818309394,-500.0,0.00030684,2]
[341345053,1730818309404,-1172.46,0.00030684,2]
[341345054,1730818309414,-950.66,0.00030684,2]
[341345055,1730818309424,-566.27,0.00030684,2]
[341345056,1730818309434,-1150.28,0.00030684,2]
[341345057,1730818309444,-1053.05,0.00030684,2]
[341345058,1730818309454,-1385.21,0.00030684,2]
[341345059,1730818309464,-2449.39,0.00030684,2]
[341345060,1730818309474,-551.76,0.00030684,2]
[341345061,1730818309484,-1152.78,0.00030684,2]
[341345062,1730818309495,-505.75,0.00030684,2]
[341345063,1730818309505,-1169.16,0.00030684,2]
[341345064,1730818309515,-500.0,0.00030684,2]
[341345065,1730818309525,-500.0,0.00030684,2]
[341345066,1730818309535,-1981.15,0.00030684,2]
[341345067,1730818309545,-1122.88,0.00030684,2]
[341345068,1730818309555,-667.7,0.00030684,2]
[341345069,1730818309565,-765.3,0.00030684,2]
[341345070,1730818309575,-1179.4,0.00030684,2]
[341345071,1730818309585,-745.83,0.00030684,2]
[341345072,1730818309595,-1138.75,0.00030684,2]
[341345073,1730818309607,-500.0,0.00030684,2]
[341345074,1730818309617,-500.0,0.00030684,2]
[341345075,1730818309627,-1546.36,0.00030684,2]
[341345076,1730818309637,-1799.17,0.00030684,2]
[341345077,1730818309647,-500.0,0.00030684,2]
[341345078,1730818309656,-918.0,0.00030684,2]
[341345079,1730818309667,-882.74,0.00030684,2]
[341345080,1730818309677,-375.35362319,0.00030684,2]
[341345081,1730818309687,-500.0,0.00030684,2]
[341345082,1730818309697,-715.96,0.00030684,2]
[341345083,1730818309707,-1464.77,0.00030684,2]
[341345084,1730818309717,-500.0,0.00030684,2]
[341345085,1730818309727,-500.0,0.00030684,2]
[341345086,1730818309737,-470.97501225,0.00030684,2]
[341345087,1730818309747,-500.0,0.00030684,2]
[341345088,1730818309757,-821.25,0.00030684,2]
[341345089,1730818309766,-561.05,0.00030684,2]
[341345090,1730818309776,-2488.35,0.00030684,2]
[341345091,1730818309786,-1277.43,0.00030684,2]
[341345092,1730818309796,-789.16,0.00030684,2]
[341345093,1730818309805,-1983.46,0.00030684,2]
[341345094,1730818309815,-1319.52,0.00030684,2]
[341345095,1730818309825,-770.21,0.00030684,2]
[341345096,1730818309835,-933.5,0.00030684,2]
[341345097,1730818309845,-1484.81,0.00030684,2]
[341345098,1730818309857,-769.6,0.00030684,2]
[341345099,1730818309866,-893.08,0.00030684,2]
[341345100,1730818309876,-2097.16,0.00030684,2]
[341345101,1730818309885,-706.56,0.00030684,2]
[341345102,1730818309896,-626.22,0.00030684,2]
[341345103,1730818309907,-1129.24,0.00030684,2]
[341345104,1730818309917,-1181.37,0.00030684,2]
[341345105,1730818309927,-500.0,0.00030684,2]
[341345106,1730818309938,-1105.93,0.00030684,2]
[341345107,1730818309954,-1949.19,0.00030684,2]
[341345108,1730818309964,-1772.13,0.00030684,2]
[341345109,1730818309975,-500.0,0.00030684,2]
[341345110,1730818309984,-2148.83,0.00030684,2]
[341345111,1730818309994,-500.0,0.00030684,2]
[341345112,1730818310004,-899.14,0.00030684,2]
[341345113,1730818310014,-500.0,0.00030684,2]
[341345114,1730818310025,-2651.17,0.00030684,2]
[341345115,1730818310034,-729.55,0.00030684,2]
[341345116,1730818310043,-891.77,0.00030684,2]
[341345117,1730818310053,-1337.92,0.00030684,2]
[341345118,1730818310063,-526.62720785,0.00030684,2]
[341345119,1730818310073,-500.0,0.00030684,2]
[341345120,1730818310084,-183.6,0.00030684,2]
[341345121,1730818310093,-500.0,0.00030684,2]
[341345122,1730818310105,-2000.0,0.00030684,2]
[341345123,1730818310115,-1628.51,0.00030684,2]
[341345124,1730818310125,-1340.76,0.00030684,2]
[341345125,1730818310135,-1205.1,0.00030684,2]
[341345126,1730818310144,-671.93,0.00030684,2]
[341345127,1730818310154,-2625.61,0.00030684,2]
[341345128,1730818310165,-500.0,0.00030684,2]
[341345129,1730818310174,-1052.87,0.00030684,2]
[341345130,1730818310185,-862.96,0.00030684,2]
[341345131,1730818310195,-1134.95,0.00030684,2]
[341345132,1730818310204,-500.0,0.00030684,2]
[341345133,1730818310214,-500.0,0.00030684,2]
[341345134,1730818310224,-713.84,0.00030684,2]
[341345135,1730818310234,-1190.36,0.00030684,2]
[341345136,1730818310244,-500.0,0.00030684,2]
[341345137,1730818310256,-500.0,0.00030684,2]
[341345138,1730818310266,-561.87,0.00030684,2]
[341345139,1730818310277,-243.82285505,0.00030684,2]
[341345140,1730818310287,-1258.85,0.00030684,2]
[341345141,1730818310296,-708.32,0.00030684,2]
[341345142,1730818310306,-719.74,0.00030684,2]
[341345143,1730818310317,-530.24,0.00030684,2]
[341345144,1730818310327,-533.96,0.00030684,2]
[341345145,1730818310336,-1233.24,0.00030684,2]
[341345146,1730818310346,-1568.32,0.00030684,2]